bitfinex/quotes_SOLUSD_20260114
["timestamp","ask_amount","ask_price","bid_price","bid_amount"]
[1768423526231,4.06599165,147.22,147.17,0.69080765]
[1768423526428,0.20168144,147.22,147.18,0.69080765]
[1768423526742,0.21043043,147.18,147.14,6.99591734]
[1768423527123,4.49917578,147.17,147.14,0.2]
[1768423527441,4.07898499,147.16,147.11,6.13137071]
[1768423527641,4.29697388,147.15,147.11,5.44056306]
[1768423527825,0.43266367,147.15,147.11,5.44056306]
[1768423528651,3.86431021,147.16,147.12,0.69080765]
[1768423528847,0.55170879,147.17,147.12,0.69080765]
[1768423529061,3.96331021,147.14,147.11,5.44056306]
[1768423529225,3.86431021,147.15,147.11,12.92896597]
[1768423529415,12.38,147.17,147.11,0.69080765]
[1768423529621,0.10348181,147.15,147.1,10.86226458]
[1768423529830,3.96779202,147.15,147.1,7.68876202]
[1768423530022,3.96779202,147.15,147.1,0.89080765]
[1768423530238,3.86431021,147.14,147.1,0.89080765]
[1768423530438,3.86431021,147.14,147.1,7.68880886]
[1768423530628,4.40705492,147.14,147.1,0.2]
[1768423530829,0.54274471,147.14,147.1,0.2]
[1768423531030,3.86431021,147.13,147.1,0.2]
[1768423531235,4.40705492,147.14,147.1,0.2]
[1768423531431,3.02438832,147.14,147.1,0.2]
[1768423531634,0.11217965,147.11,147.1,0.2]
[1768423531843,2.71877745,147.1,147.07,0.2]
[1768423532046,2.48164361,147.08,147.05,0.2]
[1768423532232,0.1134292,147.09,147.02,12.53310587]
[1768423532548,0.1134292,147.09,147.02,5.73167673]
[1768423532747,0.1134292,147.09,147.03,0.89080765]
[1768423532953,0.1134292,147.09,147.06,0.69080765]
[1768423534038,9.27980977,147.1,147.06,0.69080765]
[1768423534259,2.48164361,147.1,147.06,0.69080765]
[1768423534749,6.79728958,147.12,147.07,0.69080765]
[1768423534948,19.17728958,147.12,147.07,0.69080765]
[1768423535163,2.48164361,147.11,147.07,0.69080765]
[1768423535328,6.33479463,147.08,147.04,0.2]
[1768423535538,6.33479463,147.07,147.04,0.2]
[1768423536137,6.33479463,147.06,147.04,0.2]
[1768423537131,18.71479463,147.07,147.04,0.2]
[1768423538340,25.51431679,147.07,147.04,0.2]
[1768423538957,19.17952216,147.07,147.04,0.2]
[1768423539273,25.51431679,147.07,147.04,0.2]
[1768423539438,103.1,147.1,147.05,0.69080765]
[1768423539756,18.73479463,147.11,147.06,0.69080765]
[1768423540063,12.4,147.1,147.06,0.69080765]
[1768423541465,12.4,147.1,147.06,1.09890765]
[1768423541765,25.53305989,147.1,147.06,1.09890765]
[1768423542458,12.4,147.1,147.07,0.69080765]
[1768423543635,23.78560713,147.15,147.08,0.69080765]
[1768423543935,13.13058124,147.15,147.1,0.69080765]
[1768423544149,12.4,147.14,147.11,0.69080765]
[1768423545159,12.4,147.14,147.1,0.69080765]
[1768423545354,12.4,147.14,147.1,7.02560228]
[1768423545538,25.53067055,147.15,147.1,7.02560228]
[1768423545859,13.13067055,147.15,147.1,7.02560228]
[1768423546154,19.19587592,147.15,147.1,7.02560228]
[1768423546456,25.53067055,147.15,147.1,0.69080765]
[1768423546655,12.4,147.15,147.11,0.69080765]
[1768423547038,6.33479463,147.14,147.09,7.48918539]
[1768423547241,19.19585211,147.15,147.09,7.48918539]
[1768423547470,19.19585211,147.15,147.07,7.02560228]
[1768423547644,6.33479463,147.13,147.08,0.69080765]
[1768423547847,6.33479463,147.13,147.08,7.02560228]
[1768423548158,6.33479463,147.11,147.06,7.20788569]
[1768423548465,36.18531864,147.15,147.06,1.09890765]
[1768423548466,6.33479463,147.1,147.06,1.09890765]
[1768423548755,12.4,147.1,147.06,7.8987242]
[1768423548960,12.4,147.1,147.06,14.23351883]
[1768423549762,12.4,147.1,147.07,0.69080765]
[1768423550064,12.4,147.1,147.08,0.69080765]
[1768423551764,12.4,147.1,147.08,7.48975069]
[1768423552144,12.4,147.1,147.08,0.69080765]
[1768423552551,13.13177767,147.13,147.09,0.71397914]
[1768423552757,12.4,147.13,147.09,0.71397914]
[1768423553467,19.19685022,147.13,147.09,0.71397914]
[1768423553646,25.53164485,147.13,147.09,0.71397914]
[1768423555563,6.33479463,147.12,147.07,0.71397914]
[1768423556253,6.33479463,147.12,147.08,0.71397914]
[1768423557371,25.53164485,147.13,147.08,0.71397914]
[1768423557966,6.33479463,147.1,147.06,0.71397914]
[1768423558171,6.33479463,147.12,147.06,13.84859951]
[1768423558367,6.33479463,147.11,147.06,0.71397914]
[1768423558563,36.1886262,147.13,147.05,0.71397914]
[1768423558564,6.33479463,147.1,147.05,0.71397914]
[1768423559148,6.33479463,147.1,147.06,0.71397914]
[1768423559348,2.48292541,147.1,147.06,0.71397914]
[1768423560358,6.7985587,147.09,147.06,0.71397914]
[1768423561167,9.28148411,147.09,147.04,0.91397914]
[1768423561970,9.28148411,147.09,147.05,0.71397914]
[1768423563551,9.28148411,147.09,147.05,1.12207914]
[1768423564172,6.7985587,147.09,147.05,1.12207914]
[1768423564358,6.79734412,147.12,147.06,0.71397914]
[1768423564559,6.79578661,147.15,147.1,0.71397914]
[1768423564762,103.1,147.16,147.12,0.71397914]
[1768423564961,14.88292541,147.17,147.13,0.71397914]
[1768423565156,2.48292541,147.16,147.11,0.71397914]
[1768423565479,14.88292541,147.17,147.12,0.71397914]
[1768423566077,9.27825022,147.16,147.12,0.71397914]
[1768423567271,6.79532481,147.16,147.12,0.71397914]
[1768423567475,13.12359693,147.16,147.12,0.65397914]
[1768423568680,13.12359693,147.16,147.12,0.59397914]
[1768423570477,6.79532481,147.16,147.12,0.59397914]
[1768423572967,6.89432481,147.16,147.11,7.04225126]
[1768423573173,23.88263685,147.16,147.11,7.04225126]
[1768423573365,23.88263685,147.16,147.12,0.71397914]
[1768423574078,23.78363685,147.16,147.12,0.71397914]
[1768423575259,23.78363685,147.16,147.12,0.65397914]
[1768423577186,23.97612175,147.16,147.12,0.65397914]
[1768423577481,23.97612175,147.16,147.12,0.59397914]
[1768423579861,23.97612175,147.16,147.12,6.92225126]
[1768423580796,0.15933485,147.15,147.1,0.71276708]
[1768423580976,0.1921534,147.14,147.1,0.71276708]
[1768423581177,0.1921534,147.14,147.1,7.0410392]
[1768423581685,23.78363685,147.16,147.12,0.66496572]
[1768423581871,12.4,147.15,147.12,0.66496572]
[1768423582385,6.79624847,147.14,147.12,0.66496572]
[1768423582987,6.79588978,147.15,147.14,0.66496572]
[1768423583171,29.63989288,147.18,147.14,0.60496572]
[1768423583662,29.63989288,147.18,147.14,0.54496572]
[1768423583861,6.79486308,147.17,147.14,0.54496572]
[1768423584059,6.79486308,147.17,147.14,6.87323784]
[1768423584485,19.1945828,147.18,147.13,6.79660873]
[1768423584673,6.79413696,147.19,147.16,6.32827212]
[1768423585186,23.77898647,147.19,147.16,6.32827212]
[1768423585488,0.10171685,147.18,147.14,6.73637212]
[1768423585976,0.10437964,147.16,147.11,6.99323784]
[1768423586175,12.50437964,147.16,147.12,0.66496572]
[1768423586377,6.79578661,147.15,147.11,0.66496572]
[1768423586574,24.1506122,147.15,147.11,0.66496572]
[1768423586889,30.47888432,147.15,147.11,0.66496572]
[1768423588575,30.47888432,147.15,147.08,6.99323784]
[1768423588576,6.43526155,147.14,147.08,6.99323784]
[1768423588774,0.36277537,147.13,147.09,0.66496572]
[1768423588988,6.70170132,147.14,147.09,0.66496572]
[1768423589304,2.85500852,147.14,147.09,0.66496572]
[1768423589590,2.58057932,147.13,147.09,0.66496572]
[1768423591192,6.79717237,147.12,147.09,0.66496572]
[1768423591381,6.79684132,147.13,147.09,0.66496572]
[1768423592792,19.19684132,147.13,147.09,0.66496572]
[1768423593492,6.79684132,147.13,147.09,0.66496572]
[1768423593794,10.67425516,147.13,147.09,0.66496572]
[1768423593989,23.07425516,147.13,147.09,0.66496572]
[1768423594390,19.19684132,147.13,147.09,0.66496572]
[1768423594569,12.4,147.13,147.09,6.7984474]
[1768423594775,19.19639034,147.14,147.1,0.66496572]
[1768423595503,40.06442535,147.14,147.1,0.66496572]
[1768423595978,40.1661422,147.14,147.1,0.66496572]
[1768423596595,4.24540906,147.13,147.08,0.66496572]
[1768423596776,3.87741384,147.13,147.08,0.66496572]
[1768423597396,4.24809874,147.13,147.08,0.66496572]
[1768423597594,3.87741384,147.11,147.07,0.66496572]
[1768423597787,6.79809653,147.1,147.07,0.66496572]
[1768423599979,10.67551037,147.1,147.07,0.66496572]
[1768423600179,23.07551037,147.1,147.07,0.66496572]
[1768423601702,19.19809653,147.1,147.07,0.66496572]
[1768423602376,16.99115988,147.14,147.08,0.66496572]
[1768423602577,16.99115988,147.14,147.09,0.66496572]
[1768423602578,6.79671039,147.13,147.09,0.66496572]
[1768423602805,10.67412423,147.13,147.09,0.66496572]
[1768423603319,11.04211945,147.13,147.09,0.66496572]
[1768423603603,6.79671039,147.13,147.09,0.66496572]
[1768423603905,126.17290488,147.16,147.11,0.66496572]
[1768423604080,19.19549104,147.16,147.11,0.66496572]
[1768423604282,6.79549104,147.16,147.11,0.66496572]
[1768423604482,6.79549104,147.16,147.12,0.66496572]
[1768423605199,6.79502965,147.17,147.12,0.66496572]
[1768423605402,19.1939398,147.19,147.15,0.66496572]
[1768423605707,103.1,147.2,147.16,0.66496572]
[1768423605906,6.79319749,147.21,147.17,0.66496572]
[1768423606107,3.87741384,147.22,147.17,0.66496572]
[1768423606285,19.19273391,147.22,147.17,0.66496572]
[1768423607381,142.85035123,147.27,147.19,0.66496572]
[1768423607382,6.7907103,147.26,147.19,0.66496572]
[1768423607608,10.66812414,147.26,147.2,0.66496572]
[1768423607921,10.66812414,147.26,147.17,6.79481844]
[1768423607922,7.2454129,147.27,147.22,0.66496572]
[1768423608615,6.79041289,147.27,147.22,4.54237956]
[1768423608792,6.79041289,147.27,147.23,0.66496572]
[1768423608990,23.26736081,147.28,147.23,0.66496572]
[1768423609393,19.38994697,147.28,147.23,0.66496572]
[1768423610013,23.26736081,147.28,147.23,0.66496572]
[1768423610496,6.7907103,147.26,147.23,0.66496572]
[1768423613328,6.7902492,147.27,147.23,0.66496572]
[1768423614511,10.66766304,147.27,147.23,0.66496572]
[1768423615206,10.66766304,147.27,147.21,0.71667679]
[1768423615207,3.97913069,147.26,147.21,0.71667679]
[1768423615405,6.79152659,147.25,147.2,0.71667679]
[1768423615712,6.79084382,147.26,147.22,0.71667679]
[1768423619991,19.17084382,147.26,147.22,0.71667679]
[1768423620712,23.14725766,147.26,147.22,0.71667679]
[1768423621216,19.26984382,147.26,147.22,0.71667679]
[1768423621712,0.2,147.28,147.25,0.71667679]
[1768423622010,0.2,147.28,147.25,4.53409063]
[1768423622213,6.98979605,147.28,147.25,4.53409063]
[1768423622605,6.98979605,147.28,147.25,0.65667679]
[1768423622913,3.97641384,147.27,147.2,6.79320167]
[1768423623118,3.97641384,147.27,147.2,3.87741384]
[1768423623416,0.099,147.27,147.2,6.79341165]
[1768423623611,4.30749874,147.25,147.19,3.87741384]
[1768423623825,4.304221,147.23,147.18,0.71667679]
[1768423623995,3.98615004,147.2,147.15,0.71667679]
[1768423624201,23.05073625,147.21,147.16,0.71667679]
[1768423624393,19.17332241,147.21,147.16,0.71667679]
[1768423624812,23.05073625,147.21,147.16,0.71667679]
[1768423627321,0.099,147.24,147.17,10.99360643]
[1768423627620,39.73436596,147.25,147.2,0.71667679]
[1768423627823,23.77071447,147.24,147.2,0.65667679]
[1768423628008,10.27692964,147.22,147.16,6.7952177]
[1768423628206,10.37983449,147.23,147.17,10.27692964]
[1768423628522,34.04764411,147.24,147.18,10.27692964]
[1768423629117,34.04764411,147.24,147.17,10.27692964]
[1768423629524,6.79135674,147.25,147.19,10.27692964]
[1768423629718,16.97714617,147.26,147.18,6.79440141]
[1768423629719,12.38,147.26,147.21,0.71667679]
[1768423630233,10.27692964,147.27,147.22,0.71667679]
[1768423630397,29.64674265,147.28,147.22,0.71667679]
[1768423630909,19.36981301,147.28,147.23,0.71667679]
[1768423631106,6.98981301,147.28,147.23,0.65667679]
[1768423631809,10.43864643,147.27,147.18,16.98547986]
[1768423632011,10.27692964,147.26,147.2,6.79318155]
[1768423633025,10.27692964,147.26,147.21,0.71667679]
[1768423634024,6.79071907,147.26,147.22,0.71667679]
[1768423635044,0.2,147.28,147.23,0.71667679]
[1768423635322,10.47692964,147.28,147.23,0.71667679]
[1768423635726,17.26673512,147.28,147.23,0.71667679]
[1768423635928,0.2,147.28,147.23,0.71667679]
[1768423636112,0.2,147.28,147.24,0.71667679]
[1768423637527,0.2,147.28,147.24,7.50817506]
[1768423637828,0.2,147.28,147.25,0.71667679]
[1768423638343,0.2,147.29,147.28,0.71667679]
[1768423640515,0.2,147.31,147.28,0.71667679]
[1768423640817,6.98856223,147.31,147.28,0.71667679]
[1768423641116,17.26549187,147.31,147.26,0.66774687]
[1768423642035,6.98856223,147.31,147.26,0.66774687]
[1768423642206,17.26549187,147.31,147.26,0.66774687]
[1768423642408,17.81833677,147.31,147.26,0.66774687]
[1768423642720,10.27692964,147.29,147.26,0.66774687]
[1768423642912,10.27692964,147.3,147.26,0.66774687]
[1768423643621,17.26549187,147.31,147.26,0.66774687]
[1768423643804,0.2,147.31,147.27,0.68538881]
[1768423644432,6.7877621,147.33,147.3,0.68538881]
[1768423644736,6.7877621,147.33,147.3,0.62538881]
[1768423645626,17.73110941,147.36,147.3,0.62538881]
[1768423646234,7.45417977,147.36,147.3,0.62538881]
[1768423646415,17.73110941,147.36,147.3,0.62538881]
[1768423646614,17.73110941,147.36,147.3,6.78850164]
[1768423646833,17.73110941,147.36,147.31,0.68538881]
[1768423647236,10.91611736,147.35,147.29,6.78917898]
[1768423647535,10.27692964,147.35,147.31,0.68538881]
[1768423647741,17.06332438,147.36,147.31,0.68538881]
[1768423648822,17.06332438,147.36,147.32,0.68538881]
[1768423648823,6.78639474,147.36,147.32,0.68538881]
[1768423650643,6.78581474,147.37,147.33,0.68538881]
[1768423653432,7.4533138,147.37,147.33,0.68538881]
[1768423653634,9.92688582,147.37,147.33,0.68538881]
[1768423653826,0.66721878,147.35,147.31,0.68538881]
[1768423654841,7.45359977,147.37,147.32,0.68538881]
[1768423655141,0.66778503,147.37,147.32,6.78761558]
[1768423655330,22.30674216,147.38,147.32,6.78761558]
[1768423655526,22.30674216,147.38,147.31,9.26178083]
[1768423655732,0.66778503,147.37,147.31,9.26178083]
[1768423656249,19.16538511,147.38,147.31,9.26178083]
[1768423656547,22.30674216,147.38,147.31,9.26178083]
[1768423656945,22.30674216,147.38,147.32,0.68538881]
[1768423657253,0.66778503,147.37,147.32,0.68538881]
[1768423657454,0.66778503,147.37,147.31,0.68538881]
[1768423657625,0.66778503,147.36,147.31,0.68538881]
[1768423657826,7.45317014,147.38,147.33,0.68538881]
[1768423658034,7.45317014,147.38,147.33,0.62538881]
[1768423658849,6.78538511,147.38,147.33,2.47357202]
[1768423659059,6.78538511,147.38,147.33,9.26086164]
[1768423659244,7.45317014,147.38,147.33,6.78728962]
[1768423659750,6.78538511,147.38,147.33,6.78728962]
[1768423659949,6.78538511,147.38,147.33,9.26086164]
[1768423660155,6.78538511,147.38,147.34,0.68538881]
[1768423662151,7.45260305,147.39,147.35,0.68538881]
[1768423664950,0.66778503,147.41,147.36,0.68538881]
[1768423665146,0.66778503,147.41,147.39,1.851]
[1768423665455,0.66778503,147.41,147.39,1.791]
[1768423665658,0.66778503,147.41,147.39,1.731]
[1768423666154,9.92540224,147.41,147.39,1.731]
[1768423666349,9.92540224,147.41,147.39,1.671]
[1768423667967,0.66778503,147.39,147.33,0.68538881]
[1768423668156,9.92745911,147.36,147.32,0.68538881]
[1768423668364,2.47357202,147.35,147.32,0.68538881]
[1768423668560,9.92745911,147.36,147.32,0.68538881]
[1768423669460,9.92714325,147.37,147.33,0.68538881]
[1768423669844,0.66778503,147.37,147.33,0.68538881]
[1768423670562,0.67240195,147.35,147.31,7.47269016]
[1768423670743,3.14597397,147.35,147.31,0.68442505]
[1768423670939,0.67240195,147.31,147.22,0.68442505]
[1768423671247,2.47357202,147.25,147.22,0.68442505]
[1768423671442,3.14597397,147.26,147.22,0.68442505]
[1768423671643,2.47357202,147.27,147.23,0.68442505]
[1768423671854,3.14597397,147.27,147.22,7.47693316]
[1768423672056,3.14597397,147.27,147.23,0.68442505]
[1768423672463,0.67240195,147.27,147.23,7.47612081]
[1768423672667,2.47357202,147.28,147.24,0.68442505]
[1768423673048,15.52597397,147.29,147.24,0.68442505]
[1768423673770,2.47357202,147.28,147.24,0.68442505]
[1768423674449,0.67240195,147.31,147.26,0.68442505]
[1768423674766,3.14597397,147.31,147.26,0.68442505]
[1768423676461,3.14597397,147.31,147.26,7.47494901]
[1768423676668,0.67240195,147.31,147.26,7.47494901]
[1768423676871,0.67240195,147.31,147.27,0.68442505]
[1768423677470,0.67240195,147.32,147.27,0.68442505]
[1768423677669,15.52597397,147.34,147.29,0.68442505]
[1768423677964,0.67240195,147.34,147.29,0.68442505]
[1768423678170,9.93221477,147.36,147.3,0.68442505]
[1768423678383,9.93221477,147.36,147.31,0.68442505]
[1768423678672,0.67240195,147.36,147.32,0.68442505]
[1768423679373,0.67240195,147.35,147.3,6.78872854]
[1768423679562,3.14597397,147.35,147.3,6.78872854]
[1768423679872,0.67240195,147.34,147.29,7.47361727]
[1768423680552,0.67240195,147.34,147.3,0.68442505]
[1768423680949,0.67240195,147.33,147.28,9.94773637]
[1768423681158,0.67240195,147.33,147.28,7.47416435]
[1768423681773,3.14597397,147.33,147.28,0.68442505]
[1768423681954,3.14597397,147.33,147.26,0.68442505]
[1768423681955,0.67240195,147.3,147.26,0.68442505]
[1768423682265,3.14597397,147.3,147.26,0.68442505]
[1768423682471,3.14597397,147.3,147.25,6.79077839]
[1768423682975,3.14597397,147.3,147.25,7.47520344]
[1768423683157,3.14597397,147.29,147.24,7.4759141]
[1768423683353,0.67240195,147.27,147.22,7.47681187]
[1768423683551,6.99038282,147.27,147.22,7.47681187]
[1768423683767,6.99038282,147.26,147.22,0.68442505]
[1768423684248,0.67240195,147.26,147.22,7.47692944]
[1768423684446,0.67240195,147.26,147.22,0.68442505]
[1768423684671,6.99038282,147.26,147.21,7.47726396]
[1768423685275,0.67240195,147.26,147.21,7.47726396]
[1768423685454,0.67240195,147.26,147.21,13.79524483]
[1768423685649,6.99038282,147.27,147.22,0.68442505]
[1768423685852,6.99038282,147.26,147.22,0.68442505]
[1768423686478,6.99038282,147.26,147.21,0.68442505]
[1768423686784,6.99038282,147.26,147.21,7.47741265]
[1768423686957,0.67240195,147.26,147.21,0.68442505]
[1768423687158,6.99038282,147.25,147.21,0.68442505]
[1768423687467,6.99038282,147.24,147.19,34.19862573]
[1768423689378,6.99038282,147.23,147.19,26.72043472]
[1768423689685,6.99038282,147.23,147.19,27.40485977]
[1768423689988,0.67240195,147.23,147.19,27.40485977]
[1768423691780,0.67240195,147.22,147.19,26.72043472]
[1768423692162,0.67240195,147.22,147.19,23.1819485]
[1768423692671,6.31798087,147.23,147.19,23.1819485]
[1768423692880,6.99038282,147.23,147.19,23.1819485]
[1768423693182,6.99038282,147.22,147.19,23.1819485]
[1768423694573,0.67240195,147.22,147.19,23.1819485]
[1768423695078,6.99038282,147.22,147.19,23.1819485]
[1768423695472,0.67240195,147.2,147.19,23.1819485]
[1768423695672,13.7829698,147.22,147.19,23.1819485]
[1768423695874,0.67240195,147.21,147.18,0.1]
[1768423697777,0.67240195,147.23,147.19,0.68442505]
[1768423699392,0.67240195,147.23,147.19,7.47829665]
[1768423699888,19.84377232,147.25,147.2,0.68442505]
[1768423700185,13.78081706,147.27,147.22,0.68442505]
[1768423700390,6.99038282,147.26,147.22,0.68442505]
[1768423700980,0.67240195,147.26,147.22,0.68442505]
[1768423701177,13.77524025,147.28,147.23,0.69572852]
[1768423701571,0.66729834,147.27,147.23,0.69572852]
[1768423702180,0.66729834,147.26,147.22,0.69572852]
[1768423702394,0.66729834,147.24,147.19,13.80733289]
[1768423702693,0.66729834,147.24,147.2,13.80710298]
[1768423703411,13.77613588,147.26,147.21,0.69572852]
[1768423705287,7.45762153,147.27,147.22,0.69572852]
[1768423705595,0.66729834,147.27,147.23,0.69572852]
[1768423705982,9.93465347,147.27,147.23,0.69572852]
[1768423706897,7.45812943,147.26,147.21,9.96583356]
[1768423707100,0.66729834,147.25,147.21,7.48874271]
[1768423708000,0.66729834,147.25,147.21,0.69572852]
[1768423708199,0.66729834,147.25,147.2,9.96610843]
[1768423708406,0.66729834,147.25,147.21,0.69572852]
[1768423709898,0.66729834,147.24,147.2,6.79328906]
[1768423710094,0.66729834,147.24,147.2,7.48901758]
[1768423711197,0.66729834,147.24,147.19,19.46117743]
[1768423711198,0.66729834,147.22,147.18,7.58982385]
[1768423711400,0.66729834,147.23,147.19,9.96639558]
[1768423711805,0.66729834,147.23,147.19,7.48930473]
[1768423713388,0.66729834,147.22,147.18,6.89426613]
[1768423713586,0.66729834,147.22,147.18,7.58999465]
[1768423714288,3.14438919,147.22,147.18,0.79572852]
[1768423714486,0.66729834,147.21,147.18,0.1]
[1768423721110,0.66729834,147.21,147.18,7.5901226]
[1768423721313,0.66729834,147.22,147.18,0.79572852]
[1768423721492,23.04524814,147.23,147.18,0.1]
[1768423721493,0.66729834,147.2,147.18,0.1]
[1768423721806,4.53250084,147.19,147.16,3.54188326]
[1768423722001,4.53250084,147.19,147.15,0.69572852]
[1768423722210,0.65946955,147.19,147.15,0.69572852]
[1768423724395,0.66722005,147.18,147.13,11.03489811]
[1768423724594,0.66722005,147.18,147.13,14.9079294]
[1768423724796,11.33390396,147.2,147.15,0.69572852]
[1768423725514,11.33390396,147.2,147.15,7.49142659]
[1768423725817,0.65946955,147.19,147.15,7.49142659]
[1768423727004,0.66729834,147.22,147.18,0.69572852]
[1768423727199,120.02032963,147.24,147.18,0.69572852]
[1768423727517,7.45156355,147.23,147.18,0.69572852]
[1768423727818,7.45156355,147.23,147.16,0.69572852]
[1768423727819,4.54017461,147.2,147.16,0.69572852]
[1768423728125,0.66706811,147.18,147.13,14.9079482]
[1768423728307,0.66706811,147.18,147.14,0.69572852]
[1768423728814,0.65969747,147.17,147.13,4.23830683]
[1768423729393,0.65969747,147.17,147.13,11.03498732]
[1768423730094,0.65969747,147.17,147.13,4.23830683]
[1768423730710,0.65969747,147.17,147.13,7.49243136]
[1768423732795,0.65469702,147.15,147.1,11.05424256]
[1768423733002,0.65469702,147.12,147.1,3.54302164]
[1768423733527,0.65469702,147.12,147.08,11.3853429]
[1768423734616,0.65469702,147.12,147.08,7.51231161]
[1768423735401,0.65469702,147.12,147.08,0.713425]
[1768423735604,0.65469702,147.11,147.06,4.35761452]
[1768423735805,3.87303129,147.11,147.06,4.35761452]
[1768423736022,3.87303129,147.11,147.06,0.813425]
[1768423736629,10.67081322,147.11,147.06,0.813425]
[1768423737222,10.67081322,147.11,147.06,0.1]
[1768423737725,0.65469702,147.1,147.06,0.1]
[1768423738533,4.52772831,147.1,147.06,0.1]
[1768423738919,0.65469702,147.1,147.06,7.61331327]
[1768423739216,0.65469702,147.16,147.09,0.713425]
[1768423739530,0.6545725,147.13,147.08,0.713425]
[1768423739738,0.6545725,147.13,147.09,0.713425]
[1768423740420,0.6545725,147.13,147.09,4.58645629]
[1768423740620,0.6545725,147.13,147.09,0.713425]
[1768423740819,0.64236814,147.12,147.07,10.67238775]
[1768423741018,0.65433083,147.09,147.06,0.1]
[1768423741213,0.6126074,147.08,147.06,0.1]
[1768423742216,3.87303129,147.08,147.06,0.1]
[1768423742437,3.87303129,147.07,147.04,0.2]
[1768423742640,10.67268012,147.07,147.04,0.2]
[1768423743014,6.79919565,147.08,147.04,0.2]
[1768423743216,3.87303129,147.07,147.04,0.2]
[1768423744039,12.4,147.1,147.05,0.713425]
[1768423744245,12.4,147.1,147.04,0.2]
[1768423744246,3.87303129,147.06,147.04,0.2]
[1768423744421,3.87303129,147.07,147.04,0.2]
[1768423744732,4.38657616,147.07,147.04,0.2]
[1768423745835,11.1862404,147.07,147.04,0.2]
[1768423746528,0.51354487,147.07,147.04,0.2]
[1768423746728,4.38657616,147.07,147.04,0.2]
[1768423747142,0.51354487,147.07,147.04,0.2]
[1768423748034,11.32642304,147.09,147.04,0.913425]
[1768423748224,7.45293565,147.1,147.05,0.713425]
[1768423748441,11.32596694,147.1,147.05,0.713425]
[1768423748623,7.45293565,147.1,147.05,0.713425]
[1768423748842,3.87303129,147.07,147.04,0.2]
[1768423749021,4.52493336,147.06,147.04,0.2]
[1768423749541,0.65190207,147.06,147.04,0.2]
[1768423750643,0.51354487,147.07,147.04,0.2]
[1768423751131,4.38657616,147.1,147.05,0.713425]
[1768423751525,0.6532855,147.09,147.05,0.713425]
[1768423752436,0.6532855,147.09,147.04,4.07303129]
[1768423752437,4.38797357,147.08,147.04,0.2]
[1768423753141,11.18701663,147.08,147.04,0.2]
[1768423753730,0.51494228,147.08,147.04,0.913425]
[1768423754222,7.31418526,147.08,147.04,0.913425]
[1768423754423,11.18721655,147.08,147.04,0.913425]
[1768423754937,0.51631187,147.06,147.04,0.2]
[1768423755424,0.65469702,147.08,147.04,0.913425]
[1768423755625,7.45393099,147.08,147.04,0.913425]
[1768423755827,11.32696228,147.08,147.04,0.913425]
[1768423756038,0.51354487,147.07,147.04,0.2]
[1768423757536,7.31311072,147.07,147.04,0.2]
[1768423759434,0.65190207,147.04,147.03,0.2]
[1768423759638,6.80040802,147.05,147.03,0.2]
[1768423760040,3.87303129,147.06,147.03,0.2]
[1768423760041,10.67312774,147.06,147.03,0.2]
[1768423760241,6.80009645,147.06,147.03,0.2]
[1768423760452,10.67312774,147.06,147.03,0.2]
[1768423760648,27.67299174,147.06,147.03,1e-08]
[1768423760838,3.87303129,147.05,147.03,1e-08]
[1768423761634,7.22555483,147.04,147.03,1e-08]
[1768423762849,7.51488215,147.05,147.03,1e-08]
[1768423763932,12.4,147.06,147.03,0.66633079]
[1768423764137,7.51422348,147.07,147.03,4.53936208]
[1768423764753,7.51422348,147.07,147.03,0.66633079]
[1768423765454,7.51422348,147.07,147.03,4.53936208]
[1768423766050,19.19904083,147.08,147.04,0.66633078]
[1768423766351,103.1,147.09,147.05,0.66633078]
[1768423766352,6.79883489,147.09,147.05,0.66633078]
[1768423766559,0.71155746,147.08,147.04,3.87303129]
[1768423766871,0.71155746,147.08,147.04,4.53936207]
[1768423767753,7.51329005,147.09,147.05,0.66633078]
[1768423768051,6.79883489,147.09,147.06,0.66633078]
[1768423768430,6.79819682,147.1,147.06,4.53936207]
[1768423768634,6.79819682,147.1,147.07,0.66633078]
[1768423769061,7.22288114,147.1,147.06,3.87303129]
[1768423769362,7.22288114,147.1,147.06,4.53936207]
[1768423770232,7.22288114,147.1,147.06,0.66633078]
[1768423770437,7.22288114,147.1,147.06,4.53936207]
[1768423771767,19.91219624,147.11,147.07,0.66633078]
[1768423775561,0.71155746,147.09,147.04,0.66633078]
[1768423775749,0.71155746,147.09,147.05,0.66633078]
[1768423775951,7.51037963,147.09,147.05,0.66633078]
[1768423776655,7.51037963,147.09,147.05,3.14875474]
[1768423776860,103.1,147.13,147.08,0.66633078]
[1768423776861,0.71445516,147.12,147.08,0.66633078]
[1768423777042,13.11445516,147.12,147.08,0.60633078]
[1768423777459,15.59687912,147.12,147.08,0.60633078]
[1768423777871,19.91175433,147.12,147.08,0.60633078]
[1768423779958,0.71445516,147.14,147.1,0.66633078]
[1768423780151,7.51088057,147.14,147.1,0.66633078]